bitfinex/quotes_SOLUSD_20241202
["timestamp","ask_amount","ask_price","bid_price","bid_amount"]
[1733174954492,5.11966477,222.98,222.91,70.0]
[1733174954669,9.7937133,222.98,222.89,4.487]
[1733174954987,20.0,222.95,222.89,4.487]
[1733174956991,5.11966477,222.98,222.92,4.487]
[1733174959466,9.7937133,222.98,222.92,4.487]
[1733174959676,4.67404853,222.97,222.92,4.487]
[1733174959873,5.20146435,222.96,222.89,4.487]
[1733174960174,9.87551288,222.96,222.89,4.487]
[1733174960572,10.0,222.95,222.89,4.487]
[1733174960776,5.11966477,222.94,222.89,4.487]
[1733174962097,10.0,222.95,222.92,4.487]
[1733174968004,10.0,222.95,222.93,4.487]
[1733174968203,10.0,222.95,222.89,4.487]
[1733174968578,15.11966477,222.95,222.89,4.487]
[1733174968776,29.44363369,222.95,222.89,4.487]
[1733174968979,9.87551288,222.94,222.86,4.487]
[1733174969193,13.71164546,222.94,222.86,4.487]
[1733174970107,3.83613258,222.94,222.9,4.487]
[1733174970401,3.83613258,222.94,222.91,4.487]
[1733174971185,3.83613258,222.94,222.9,4.487]
[1733174971801,5.11966477,222.93,222.9,4.487]
[1733174974397,0.11260921,222.92,222.9,4.487]
[1733174975804,0.11260921,222.92,222.86,70.0]
[1733174976108,0.11260921,222.92,222.87,4.487]
[1733174976607,0.11260921,222.92,222.9,4.487]
[1733174983697,0.11260921,222.92,222.89,70.0]
[1733174983895,0.11260921,222.92,222.78,5.0]
[1733174983896,4.67404853,222.91,222.82,70.0]
[1733174984094,29.87551288,222.91,222.82,70.0]
[1733174984308,29.87551288,222.91,222.83,4.487]
[1733174985006,9.87551288,222.91,222.83,4.487]
[1733174989903,13.71164546,222.91,222.83,4.487]
[1733174990728,9.87551288,222.91,222.83,4.487]
[1733174990935,3.83613258,222.9,222.8,4.487]
[1733174991224,5.20146435,222.89,222.8,4.487]
[1733174992717,9.87551288,222.89,222.8,4.487]
[1733174994928,15.89074853,222.88,222.76,74.487]
[1733174995105,20.0,222.85,222.73,70.0]
[1733174995307,27.35177936,222.84,222.7,70.0]
[1733174995516,32.55324371,222.84,222.7,70.0]
[1733174995901,32.55324371,222.84,222.71,4.487]
[1733174996559,20.0,222.8,222.71,4.487]
[1733174996710,20.0,222.8,222.7,70.0]
[1733174997022,9.87551288,222.79,222.71,4.487]
[1733174997212,9.87551288,222.79,222.7,70.0]
[1733174997809,9.87551288,222.79,222.71,4.487]
[1733174998824,9.87551288,222.79,222.7,70.0]
[1733174999020,9.87551288,222.79,222.71,4.487]
[1733175002118,12.55324371,222.79,222.71,4.487]
[1733175003019,12.55324371,222.79,222.7,70.0]
[1733175003219,12.55324371,222.79,222.71,4.487]
[1733175004122,2.67773083,222.79,222.74,70.0]
[1733175004304,3.93674844,222.84,222.74,70.0]
[1733175005121,3.93674844,222.84,222.75,5.38230557]
[1733175005322,3.93674844,222.84,222.8,70.0]
[1733175005846,5.20146435,222.85,222.8,70.0]
[1733175006131,5.20146435,222.85,222.81,4.487]
[1733175007050,3.93674844,222.89,222.81,4.487]
[1733175008142,3.93674844,222.89,222.84,70.0]
[1733175010213,3.93674844,222.89,222.85,4.487]
[1733175010644,3.93674844,222.89,222.84,70.0]
[1733175012226,3.93674844,222.89,222.85,4.487]
[1733175012428,3.93674844,222.89,222.84,70.0]
[1733175012634,19.13821279,222.95,222.88,70.0]
[1733175012942,9.13821279,222.95,222.88,70.0]
[1733175013146,9.13821279,222.95,222.89,4.487]
[1733175013830,4.85285832,222.94,222.85,70.0]
[1733175014020,9.52690685,222.94,222.85,70.0]
[1733175014220,9.52690685,222.94,222.85,74.487]
[1733175014423,3.93674844,222.93,222.85,74.487]
[1733175014619,3.93674844,222.93,222.85,70.0]
[1733175015312,3.93674844,222.93,222.86,4.487]
[1733175016126,9.13821279,222.93,222.82,70.0]
[1733175016325,4.85285832,222.92,222.83,4.487]
[1733175016553,9.52690685,222.92,222.82,70.0]
[1733175016722,4.67404853,222.91,222.82,70.0]
[1733175017047,13.47180079,222.91,222.85,70.0]
[1733175017225,8.79775226,222.91,222.85,70.0]
[1733175017925,8.79775226,222.91,222.85,74.487]
[1733175019649,8.79775226,222.91,222.86,4.487]
[1733175019848,8.79775226,222.91,222.85,70.0]
[1733175020148,5.19331885,222.9,222.82,70.0]
[1733175020454,5.19331885,222.9,222.85,70.0]
[1733175021045,5.19331885,222.9,222.85,74.487]
[1733175021538,5.19331885,222.9,222.82,70.0]
[1733175021737,9.86736738,222.9,222.78,74.487]
[1733175021936,4.67404853,222.89,222.78,74.487]
[1733175022126,20.0,222.86,222.76,4.487]
[1733175022327,20.0,222.86,222.69,8.50693024]
[1733175022328,24.67404853,222.85,222.72,70.0]
[1733175022543,32.57480218,222.85,222.72,70.0]
[1733175022722,3.93674844,222.84,222.72,70.0]
[1733175022928,20.0,222.81,222.69,70.0]
[1733175023249,8.61079697,222.8,222.69,70.0]
[1733175023429,5.20146435,222.79,222.69,70.0]
[1733175023632,9.87551288,222.79,222.69,70.0]
[1733175023857,8.61079697,222.78,222.7,4.487]
[1733175024026,5.19331885,222.77,222.7,4.487]
[1733175024425,5.19331885,222.77,222.69,70.0]
[1733175024733,8.60334778,222.76,222.64,74.487]
[1733175024930,4.85285832,222.75,222.64,74.487]
[1733175025131,13.46365529,222.75,222.64,74.487]
[1733175025531,13.46365529,222.75,222.64,70.0]
[1733175025729,13.46365529,222.75,222.64,74.487]
[1733175026342,13.46365529,222.75,222.64,70.0]
[1733175026527,20.0,222.71,222.59,70.0]
[1733175026723,9.75673575,222.7,222.59,70.0]
[1733175027631,9.75673575,222.7,222.63,70.0]
[1733175027827,20.0,222.75,222.66,70.0]
[1733175028037,9.13821279,222.77,222.66,70.0]
[1733175028329,3.93674844,222.77,222.69,70.0]
[1733175028632,9.13821279,222.81,222.72,70.0]
[1733175029323,4.20146435,222.81,222.72,70.0]
[1733175031227,4.20146435,222.81,222.69,70.0]
[1733175031228,20.0,222.8,222.69,70.0]
[1733175031432,9.48035194,222.79,222.69,70.0]
[1733175034081,0.11260921,222.73,222.69,70.0]
[1733175035332,0.11260921,222.73,222.72,70.0]
[1733175036453,0.11260921,222.73,222.72,74.487]
[1733175039569,0.11260921,222.73,222.72,102.15398276]
[1733175039752,0.11260921,222.73,222.72,96.77163648]
[1733175040256,0.11260921,222.73,222.72,107.99643648]
[1733175040560,0.11260921,222.73,222.72,112.48343648]
[1733175042849,11.2156,222.91,222.78,4.487]
[1733175043079,5.12924212,222.86,222.78,4.487]
[1733175043266,4.67404853,222.85,222.78,4.487]
[1733175043472,5.12924212,222.86,222.78,4.487]
[1733175045386,5.12924212,222.86,222.8,70.0]
[1733175046785,5.12924212,222.86,222.81,4.487]
[1733175049795,4.67404853,222.9,222.81,4.487]
[1733175050260,4.67404853,222.9,222.83,70.0]
[1733175050461,10.0,222.91,222.83,70.0]
[1733175050777,19.80329065,222.91,222.8,70.0]
[1733175051096,9.80329065,222.9,222.8,70.0]
[1733175051263,9.80329065,222.9,222.81,4.487]
[1733175051603,9.80329065,222.9,222.78,4.487]
[1733175051969,11.2162,222.89,222.78,4.487]
[1733175052275,20.0,222.85,222.78,4.487]
[1733175052667,20.0,222.85,222.75,4.487]
[1733175053273,20.0,222.85,222.78,4.487]
[1733175053473,4.67404853,222.88,222.78,4.487]
[1733175054693,9.80329065,222.88,222.78,4.487]
[1733175054899,5.12924212,222.87,222.78,4.487]
[1733175055083,4.67404853,222.86,222.78,4.487]
[1733175056488,15.08885911,222.89,222.78,4.487]
[1733175057194,20.0,222.86,222.79,4.487]
[1733175057401,24.67404853,222.85,222.79,4.487]
[1733175057573,24.67404853,222.85,222.77,70.0]
[1733175057777,3.87265911,222.88,222.77,70.0]
[1733175057997,3.87265911,222.88,222.78,4.487]
[1733175059000,3.87265911,222.88,222.81,4.487]
[1733175061602,11.2162,222.89,222.81,4.487]
[1733175062176,10.0,222.91,222.81,4.487]
[1733175062381,10.0,222.91,222.83,70.0]
[1733175062580,10.0,222.91,222.86,70.0]
[1733175063283,10.0,222.91,222.83,70.0]
[1733175063484,14.67404853,222.91,222.8,70.0]
[1733175063688,21.2154,222.91,222.8,70.0]
[1733175064181,21.2154,222.91,222.81,4.487]
[1733175064506,10.0,222.91,222.84,4.487]
[1733175065708,10.0,222.91,222.81,4.487]
[1733175065910,14.67404853,222.91,222.81,4.487]
[1733175066198,9.80329065,222.9,222.81,74.487]
[1733175066399,4.67404853,222.9,222.81,4.487]
[1733175066607,10.0,222.91,222.81,4.487]
[1733175066785,20.0,222.88,222.78,4.487]
[1733175066983,24.67404853,222.87,222.78,4.487]
[1733175067211,20.0,222.87,222.78,4.487]
[1733175067399,9.80329065,222.86,222.78,4.487]
[1733175067579,9.80329065,222.86,222.79,4.487]
[1733175067904,9.80329065,222.86,222.75,4.487]
[1733175068398,20.0,222.82,222.75,4.487]
[1733175068574,4.67404853,222.81,222.75,4.487]
[1733175068776,4.67404853,222.81,222.7,70.0]
[1733175068777,4.67404853,222.81,222.71,4.487]
[1733175070004,24.67404853,222.81,222.71,4.487]
[1733175070174,29.80329065,222.81,222.68,4.487]
[1733175071207,20.0,222.77,222.62,4.487]
[1733175071378,4.67404853,222.76,222.61,70.0]
[1733175071580,20.0,222.73,222.61,70.0]
[1733175071807,20.0,222.71,222.61,70.0]
[1733175072114,20.0,222.71,222.58,70.0]
[1733175072286,24.67404853,222.71,222.58,74.487]
[1733175072898,20.0,222.69,222.56,4.487]
[1733175073080,20.0,222.68,222.56,4.487]
[1733175073287,20.0,222.68,222.59,70.0]
[1733175073486,20.0,222.68,222.56,74.487]
[1733175074299,20.0,222.66,222.56,74.487]
[1733175074503,20.0,222.66,222.53,70.0]
[1733175075615,20.0,222.64,222.53,70.0]
[1733175076289,11.2293,222.63,222.5,70.0]
[1733175076625,20.0,222.6,222.5,70.0]
[1733175077597,20.0,222.6,222.44,70.0]
[1733175077787,24.67404853,222.59,222.44,70.0]
[1733175078189,20.0,222.58,222.41,70.0]
[1733175078414,20.0,222.55,222.41,70.0]
[1733175078599,20.0,222.54,222.41,70.0]
[1733175078994,20.0,222.54,222.39,98.56629485]
[1733175078995,24.67404853,222.53,222.39,98.56629485]
[1733175079193,5.0,222.52,222.39,98.56629485]
[1733175079398,20.0,222.49,222.39,98.56629485]
[1733175079598,20.0,222.48,222.39,98.56629485]
[1733175079805,24.67404853,222.48,222.39,98.56629485]
[1733175080221,24.67404853,222.48,222.38,0.5266593]
[1733175080423,20.0,222.44,222.38,0.5266593]
[1733175080796,24.67404853,222.44,222.38,0.5266593]
[1733175081000,4.67404853,222.43,222.33,98.56629485]
[1733175082501,20.0,222.4,222.33,98.56629485]
[1733175082724,20.0,222.4,222.31,70.0]
[1733175083233,20.0,222.4,222.34,70.0]
[1733175083729,20.0,222.4,222.31,70.0]
[1733175083932,20.0,222.4,222.3,98.56629485]
[1733175084104,4.67404853,222.43,222.3,98.56629485]
[1733175084305,11.2415,222.39,222.3,98.56629485]
[1733175084712,20.0,222.36,222.3,98.56629485]
[1733175085032,4.67404853,222.35,222.3,30.95085312]
[1733175085230,20.0,222.33,222.3,30.95085312]
[1733175085407,24.67404853,222.32,222.26,112.64719412]
[1733175086126,11.2455,222.31,222.26,97.62154041]
[1733175086306,20.0,222.28,222.26,97.62154041]
[1733175086623,4.67404853,222.27,222.22,126.72809338]
[1733175087633,20.0,222.24,222.22,126.72809338]
[1733175087924,4.67404853,222.27,222.22,126.72809338]
[1733175088108,20.0,222.28,222.2,70.0]
[1733175088540,20.0,222.28,222.17,70.0]
[1733175088741,24.67404853,222.28,222.17,70.0]
[1733175089232,24.67404853,222.28,222.2,70.0]
[1733175089402,24.67404853,222.28,222.17,70.0]
[1733175090237,24.67404853,222.28,222.2,70.0]
[1733175093330,4.67404853,222.27,222.17,70.0]
[1733175094112,11.248,222.26,222.17,70.0]
[1733175094314,11.248,222.26,222.16,0.5266593]
[1733175094315,20.0,222.23,222.16,0.5266593]
[1733175095331,11.2498,222.23,222.16,0.5266593]
[1733175096534,20.0,222.2,222.16,0.5266593]
[1733175101546,23.01107912,222.24,222.16,0.5266593]
[1733175101718,20.0,222.2,222.16,0.5266593]
[1733175102727,31.2514,222.2,222.16,0.5266593]
[1733175105245,20.0,222.22,222.16,0.5266593]
[1733175105450,14.26057912,222.24,222.16,0.5266593]
[1733175105746,11.2495,222.24,222.16,5.0136593]
[1733175106450,11.2495,222.24,222.16,0.5266593]
[1733175106659,20.0,222.21,222.16,0.5266593]
[1733175107951,20.0,222.21,222.1,140.80899265]
[1733175108242,20.0,222.21,222.06,70.0]
[1733175108243,23.80043689,222.2,222.06,70.0]
[1733175108453,20.0,222.16,222.04,111.99338089]
[1733175108749,20.78401703,222.16,222.05,4.487]
[1733175108933,23.80043689,222.16,222.05,4.487]
[1733175109848,20.0,222.12,222.05,4.487]
[1733175110641,20.0,222.12,222.06,4.487]
[1733175111452,20.0,222.12,222.03,70.0]
[1733175111951,20.0,222.12,222.06,70.0]
[1733175112125,5.12924212,222.23,222.11,70.0]
[1733175112450,5.0,222.21,222.04,4.487]
[1733175112624,5.0,222.21,222.01,74.487]
[1733175112823,3.80043689,222.2,222.01,74.487]
[1733175113235,5.0,222.19,222.01,74.487]
[1733175113449,20.0,222.16,222.01,74.487]
[1733175113646,25.0,222.16,222.01,4.487]
[1733175113843,20.0,222.12,222.01,4.487]
[1733175114066,25.0,222.12,221.98,238.72147427]
[1733175114241,20.0,222.1,221.98,116.48038089]
[1733175114559,20.0,222.08,221.98,116.48038089]
[1733175114869,20.0,222.06,221.96,4.487]
[1733175115038,23.80043689,222.08,221.96,4.487]
[1733175115241,20.0,222.06,221.96,4.487]
[1733175115473,23.80043689,222.08,221.96,4.487]
[1733175116566,23.80043689,222.08,221.95,111.99338089]
[1733175117846,23.80043689,222.08,221.94,0.5266593]
[1733175119066,20.0,222.06,221.94,0.5266593]
[1733175119372,13.47362253,222.08,221.94,0.5266593]
[1733175119373,24.67318564,222.05,221.94,0.5266593]
[1733175120763,3.80043689,222.08,221.94,0.5266593]
[1733175120961,24.67318564,222.09,221.94,0.5266593]
[1733175121268,4.67318564,222.08,221.94,0.5266593]
[1733175121443,20.0,222.07,221.94,0.5266593]
[1733175121643,4.67318564,222.06,221.94,0.5266593]
[1733175122150,20.0,222.1,221.95,70.0]
[1733175122465,4.67318564,222.09,221.95,70.0]
[1733175122766,24.67318564,222.09,221.95,70.0]
[1733175122967,20.0,222.06,221.94,0.5266593]
[1733175123144,58.44928564,222.05,221.94,0.5266593]
[1733175123537,58.44928564,222.05,221.84,13.38361835]
[1733175123538,58.44928564,222.05,221.84,4.487]
[1733175123763,58.44928564,222.05,221.89,70.0]
[1733175124367,31.2587,222.05,221.92,70.0]
[1733175124673,11.2569,222.09,221.95,70.0]
[1733175125266,11.2569,222.09,221.92,0.89861576]
[1733175125568,4.67318564,222.08,221.91,74.487]
[1733175125761,5.0,222.05,221.87,70.0]
[1733175125943,18.60286465,222.04,221.87,70.0]
[1733175126145,20.0,221.93,221.81,70.0]
[1733175126769,20.0,221.93,221.82,4.487]
[1733175127355,20.0,221.97,221.82,4.487]
[1733175127362,20.0,221.95,221.82,4.487]
[1733175127558,20.0,221.94,221.82,4.487]
[1733175127790,20.0,221.94,221.78,4.487]
[1733175127960,20.0,221.93,221.78,4.487]
[1733175128571,20.0,221.92,221.78,4.487]
[1733175128749,20.0,221.92,221.74,70.0]
[1733175128750,20.0,221.92,221.75,4.487]
[1733175129167,20.0,221.88,221.75,4.487]
[1733175130274,22.5296,221.93,221.75,4.487]
[1733175130275,20.0,221.9,221.75,4.487]
[1733175130476,20.0,221.89,221.75,4.487]
[1733175130647,20.0,221.89,221.78,4.487]
[1733175131706,11.2673,221.88,221.78,4.487]
[1733175132053,20.0,221.92,221.78,4.487]
[1733175132469,3.80043689,221.94,221.78,4.487]
[1733175132470,3.80043689,221.94,221.8,70.0]
[1733175132675,5.0,222.02,221.83,70.0]
[1733175132843,3.80043689,222.01,221.86,70.0]
[1733175133043,15.109279,222.04,221.91,70.0]
[1733175133275,23.90199203,222.13,221.92,17.87061835]
[1733175133476,15.109279,222.11,221.92,17.87061835]
[1733175133647,15.109279,222.11,221.94,70.0]
[1733175133975,3.80043689,222.12,221.94,70.0]
[1733175134144,18.90971589,222.12,221.95,4.487]
[1733175134471,3.80043689,222.12,221.95,4.487]
[1733175134666,3.80043689,222.12,221.95,17.87061835]
[1733175134866,3.80043689,222.12,221.95,4.487]
[1733175135261,5.12924212,222.11,221.92,4.487]
[1733175135461,5.0,222.09,221.92,4.487]
[1733175135664,20.0,222.08,221.91,70.0]
[1733175135868,8.932987,222.11,221.94,91.44809499]
[1733175136057,3.80374488,222.11,221.95,21.44809499]
[1733175136247,5.0,222.05,221.83,70.0]
[1733175136444,10.12924212,222.05,221.83,70.0]
[1733175136649,5.0,222.01,221.8,70.0]
[1733175136850,5.0,221.99,221.8,70.0]
[1733175137049,20.0,221.97,221.77,70.0]
[1733175137361,20.0,221.95,221.81,74.487]
[1733175138448,20.0,221.95,221.79,4.487]
[1733175139372,25.0,221.89,221.72,0.5266593]
[1733175140473,5.0,221.87,221.72,0.5266593]
[1733175140680,20.0,221.86,221.72,0.5266593]
[1733175141046,5.0,221.85,221.72,0.5266593]
[1733175141254,5.0,221.76,221.57,70.0]
[1733175141473,20.0,221.79,221.57,70.0]
[1733175141474,20.0,221.77,221.57,70.0]
[1733175141681,24.16485599,221.76,221.61,70.0]
[1733175141983,20.0,221.76,221.64,70.0]
[1733175142277,25.0,221.81,221.61,91.44809499]
[1733175142573,4.16485599,221.8,221.64,70.0]
[1733175143866,4.16485599,221.8,221.67,70.0]
[1733175144075,5.12924212,221.85,221.7,70.0]
[1733175145361,20.0,221.87,221.64,5.0]
[1733175145563,20.0,221.83,221.63,70.0]
[1733175145786,24.16485599,221.82,221.63,70.0]
[1733175145972,20.0,221.8,221.62,91.44809499]
[1733175146961,20.0,221.8,221.65,20.0]
[1733175147157,20.0,221.79,221.62,70.0]
[1733175147367,20.0,221.79,221.6,21.44809499]
[1733175147569,3.04877007,221.78,221.6,21.44809499]
[1733175147765,23.04877007,221.78,221.6,21.44809499]
[1733175148094,20.0,221.76,221.59,70.0]
[1733175148257,20.0,221.75,221.56,21.44809499]
[1733175148454,24.16485599,221.75,221.56,21.44809499]
[1733175148682,24.16485599,221.75,221.59,70.0]
[1733175148983,24.16485599,221.75,221.58,21.44809499]
[1733175148984,20.0,221.74,221.58,21.44809499]
[1733175149362,20.0,221.74,221.59,70.0]
[1733175149781,25.0,221.72,221.52,21.44809499]
[1733175150084,20.0,221.7,221.51,70.0]
[1733175150390,20.0,221.69,221.51,70.0]
[1733175150796,20.0,221.69,221.54,21.44809499]
[1733175150998,3.80788607,221.7,221.54,21.44809499]
[1733175151303,3.80788607,221.7,221.52,21.44809499]
[1733175151661,3.80788607,221.7,221.54,91.44809499]
[1733175152066,3.80788607,221.7,221.56,4.487]
[1733175152280,20.0,221.72,221.58,4.487]
[1733175152491,4.16485599,221.75,221.58,74.487]
[1733175152714,4.16485599,221.75,221.59,21.44809499]
[1733175152869,4.16485599,221.75,221.6,4.487]
[1733175153075,9.16485599,221.8,221.6,4.487]
[1733175153268,4.16485599,221.8,221.62,4.487]
[1733175153473,4.16485599,221.8,221.62,95.93509499]
[1733175154089,4.16485599,221.8,221.67,4.487]
[1733175154297,6.6199,221.84,221.67,4.487]
[1733175154477,9.97736735,221.84,221.67,4.487]
[1733175154678,15.10660947,221.84,221.67,4.487]
[1733175155074,15.10660947,221.84,221.65,4.487]
[1733175155592,20.0,221.81,221.65,4.487]
[1733175156293,5.0,221.79,221.6,70.0]
[1733175156467,5.0,221.79,221.51,5.0]
[1733175156468,9.16485599,221.79,221.58,21.44809499]
[1733175156673,4.16485599,221.78,221.58,21.44809499]
[1733175157074,20.0,221.76,221.58,21.44809499]
[1733175157290,20.0,221.76,221.6,70.0]
[1733175157671,24.16485599,221.78,221.6,91.44809499]
[1733175157875,20.0,221.77,221.6,91.44809499]
[1733175158490,5.0,221.74,221.5,0.5266593]
[1733175158677,20.0,221.7,221.51,21.44809499]
[1733175158890,20.0,221.7,221.5,0.5266593]
[1733175158891,9.16485599,221.69,221.5,0.5266593]
[1733175159079,20.0,221.66,221.5,0.5266593]
[1733175159280,22.52178451,221.66,221.5,0.5266593]
[1733175159592,20.0,221.59,221.39,70.0]
[1733175159771,24.1574068,221.59,221.39,91.44809499]
[1733175160086,24.1574068,221.59,221.43,70.0]
[1733175160298,4.1574068,221.59,221.43,91.44809499]
[1733175160501,4.1574068,221.59,221.46,4.487]
[1733175160702,20.0,221.62,221.46,4.487]
[1733175161180,20.0,221.61,221.46,4.487]
[1733175161377,20.0,221.61,221.46,74.487]
[1733175161902,20.0,221.62,221.44,4.487]
[1733175162280,20.0,221.61,221.42,70.0]
[1733175162477,20.0,221.61,221.43,4.487]
[1733175163302,20.0,221.62,221.43,4.487]
[1733175163489,20.0,221.62,221.46,21.44809499]
[1733175163706,18.06206,221.61,221.49,70.0]
[1733175164201,4.16485599,221.7,221.49,70.0]
[1733175164408,22.22190199,221.7,221.49,70.0]
[1733175164709,22.22190199,221.7,221.53,70.0]
[1733175164905,22.22190199,221.7,221.56,95.93509499]
[1733175164906,18.057046,221.7,221.56,95.93509499]
[1733175165209,4.16485599,221.75,221.56,95.93509499]
[1733175165988,4.16485599,221.75,221.56,95.93509499]
[1733175166485,5.403687,221.74,221.58,21.44809499]
[1733175166722,5.403687,221.74,221.6,21.44809499]
[1733175166922,4.16485599,221.81,221.6,21.44809499]
[1733175167087,5.489297,221.77,221.6,21.44809499]
[1733175167509,5.489297,221.77,221.62,21.44809499]
[1733175167919,5.489297,221.77,221.63,70.0]
[1733175168216,4.16485599,221.81,221.66,70.0]
[1733175168518,10.0,221.82,221.66,91.44809499]
[1733175168812,15.403686,221.81,221.66,91.44809499]
[1733175169014,15.403686,221.81,221.66,95.93509499]
[1733175169263,10.0,221.82,221.66,95.93509499]
[1733175169511,10.0,221.82,221.7,21.44809499]
[1733175170288,10.0,221.82,221.68,21.44809499]
[1733175170504,10.0,221.82,221.7,70.0]
[1733175170905,10.0,221.82,221.68,21.44809499]
[1733175171910,10.0,221.82,221.7,70.0]
[1733175172099,10.0,221.82,221.7,91.44809499]
[1733175173206,10.0,221.82,221.72,21.44809499]
[1733175173913,10.0,221.82,221.75,70.0]
[1733175174118,10.0,221.82,221.72,91.44809499]
[1733175175028,10.0,221.82,221.72,70.0]
[1733175175610,10.0,221.82,221.71,70.0]
[1733175175994,10.0,221.82,221.71,91.44809499]
[1733175176416,10.0,221.82,221.69,21.44809499]
[1733175176613,10.0,221.82,221.68,91.44809499]
[1733175177123,10.0,221.82,221.68,70.0]
[1733175177624,10.0,221.82,221.68,91.44809499]
[1733175177921,10.0,221.82,221.69,21.44809499]
[1733175178127,10.0,221.82,221.72,21.44809499]
[1733175178931,10.0,221.82,221.74,91.44809499]
[1733175179232,10.0,221.82,221.75,21.44809499]
[1733175179530,10.0,221.82,221.74,91.44809499]
[1733175180121,21.2704,221.82,221.66,70.0]
[1733175180295,21.2704,221.82,221.61,70.0]
[1733175180510,26.67408657,221.82,221.61,70.0]
[1733175180715,4.1574068,221.81,221.61,70.0]
[1733175181231,20.0,221.79,221.61,70.0]
[1733175181759,11.2724,221.78,221.64,70.0]
[1733175181929,20.0,221.77,221.64,70.0]
[1733175182238,20.0,221.77,221.6,70.0]
[1733175182538,20.0,221.77,221.57,70.0]
[1733175182843,4.1574068,221.76,221.57,70.0]
[1733175183023,24.1574068,221.76,221.57,70.0]
[1733175183626,20.0,221.72,221.58,21.44809499]
[1733175183937,4.1574068,221.76,221.66,70.0]
[1733175184276,4.1574068,221.76,221.59,0.8999746]
[1733175184277,16.2709,221.81,221.55,70.0]
[1733175184417,5.0,221.78,221.56,10.0]
[1733175184623,10.48929675,221.8,221.58,70.0]
[1733175184914,3.33662234,221.77,221.58,70.0]
[1733175185317,23.33662234,221.77,221.58,70.0]
[1733175185613,11.2734,221.76,221.58,70.0]
[1733175185840,20.0,221.73,221.58,70.0]
[1733175186536,20.0,221.73,221.61,74.508]
[1733175187445,20.0,221.73,221.61,4.508]
[1733175187606,20.0,221.73,221.59,4.508]
[1733175191268,20.0,221.73,221.62,70.0]
[1733175191431,4.16485599,221.78,221.63,4.508]
[1733175191638,11.2718,221.8,221.65,70.0]
[1733175192555,11.2718,221.8,221.66,4.508]
[1733175193267,11.2718,221.8,221.66,25.95609499]
[1733175193761,4.16485599,221.83,221.69,70.0]
[1733175194354,4.16485599,221.83,221.7,25.95609499]
[1733175194552,4.16485599,221.83,221.7,4.508]
[1733175194751,11.2709,221.81,221.65,91.44809499]
[1733175195362,11.2709,221.81,221.66,4.508]
[1733175195659,20.0,221.78,221.64,4.508]
[1733175195854,20.0,221.78,221.63,21.44809499]
[1733175195855,31.2724,221.78,221.62,70.0]
[1733175196060,31.2724,221.78,221.59,70.0]
[1733175196263,20.0,221.74,221.53,86.5353]
[1733175196563,20.0,221.72,221.54,4.508]
[1733175196776,2.94533943,221.71,221.54,4.508]
[1733175197140,2.94533943,221.71,221.54,25.95609499]
[1733175197543,20.0,221.67,221.54,25.95609499]
[1733175198642,11.2764,221.7,221.56,91.44809499]
[1733175198845,2.94533943,221.71,221.59,4.508]
[1733175199071,22.94533943,221.71,221.59,4.508]
[1733175200353,22.94533943,221.71,221.57,4.508]
[1733175200738,14.22153943,221.71,221.55,4.508]
[1733175200968,20.0,221.68,221.55,4.508]